{"text_format":"1","workbook":"xlsx","n_sheets":20,"sheets":["Cover Page","Contents","Facility Info","Operational Data","Operational Summary","Perf. Form 1","Energy Form 1","Permit Compliance","Improvements","Public Liasion","Residue Quality ","Water","Air (periodic)","Air (CEMS)","HCl","SO2","NOx","TOC","Particulates","CO 95% 10 min"],"not_rendered":{"charts":6,"images":2,"macros":1,"external_links":0,"defined_names":20,"comments":0,"pivot_tables":0},"unopened":[],"bounds":{"document_bytes":16777216,"sheet_cells":100000,"rows_first":2000,"rows_last":500,"rows_between":2000,"halvings":0,"cell_chars":16384,"cell_head_chars":4096},"cells_cut":0,"cells_raw":0,"read":"whole","date_system":"1900"}

{"sheet":"Cover Page","index":0,"n_rows":53,"n_cols":14,"rows_kept":53,"cut":false,"hidden":false,"merged":[[13,13,18,15],[34,1,34,8],[0,3,5,6],[7,1,23,8],[28,1,28,8],[30,1,30,8],[32,1,32,8],[48,2,48,3],[48,6,48,8],[52,2,52,3],[36,1,36,8],[40,2,40,8],[42,2,42,4],[44,2,44,4],[46,2,46,3],[46,6,46,8]]}
[null,null,null,"Add company logo"]
[null,null,null,null,null,null,null,null,null,null,null,null,null,"Version 20.1 "]
[]
[]
[]
[]
[]
[null,"Add photo"]
[]
[]
[]
[]
[null,null,null,null,null,null,null,null,null,null,null,null,null,"Notes:"]
[null,null,null,null,null,null,null,null,null,null,null,null,null,"This template may require adjustments by individual operators to meet specific reporting requirements as defined in the site Permit(s)"]
[]
[]
[]
[]
[]
[]
[]
[]
[]
[]
[]
[]
[]
[]
[null,"Annual Performance Report 2021"]
[]
[null,"Permit EPR/ UP3005LJ"]
[]
[null,"Ardley Energy Recovery Facility"]
[]
[]
[]
[null,"VIRIDOR OXFORDSHIRE LIMITED"]
[]
[null,"Year:",2021]
[]
[null,"Address:","Ardley ERF, Middleton Stoney Road, Ardley, Oxon, OX27 7AA"]
[]
[null,"Tel: ","07788178544"]
[]
[null,"Email: ","HEdwards1@viridor.co.uk"]
[]
[null,"Prepared by:","Helen Edwards",null,null,"Position:","EHS Manager"]
[]
[null,"Approved by:","Alan Beaumont",null,null,"Position:","Plant Manager"]
[]
[null,"Version:",1]
[]
[null,"Issue Date:","2022-01-31"]

{"sheet":"Contents","index":1,"n_rows":43,"n_cols":11,"rows_kept":43,"cut":false,"hidden":false,"merged":[[4,10,7,14],[8,1,8,6],[3,1,3,6],[4,1,4,6],[5,1,5,6],[6,1,6,6],[7,1,7,6],[20,1,20,6],[9,1,9,6],[10,1,10,6],[11,1,11,6],[12,1,12,6],[13,1,13,6],[14,1,14,6],[15,1,15,6],[16,1,16,6],[17,1,17,6],[18,1,18,6],[19,1,19,6],[34,1,34,6],[21,1,21,6],[22,1,22,6],[25,1,25,6],[26,1,26,6],[27,1,27,6],[28,1,28,6],[29,1,29,6],[30,1,30,6],[33,1,33,6],[42,0,45,9],[35,1,35,6],[36,1,36,6],[37,1,37,6],[38,1,38,6],[39,1,39,6],[40,1,40,6]]}
[{"$f":"+'Cover Page'!$B$29","v":"Annual Performance Report 2021"},null,null,null,{"$f":"+'Cover Page'!$B$33","v":"Ardley Energy Recovery Facility"}]
[]
["Contents",null,null,null,null,null,null,null,null,null,"Notes:"]
["Section","Subject",null,null,null,null,null,"Page ",null,null,"Section references and Page nos. to be inserted"]
[null,"Facility Information",null,null,null,null,null,3,null,null,"Sections and Subjects may require adjustment by individual operators to meet specific reporting requirements as defined in the sites Permit(s)"]
[null,"Operational Summary",null,null,null,null,null,5]
["4.2.2(b)(c )","Operational Data",null,null,null,null,null,4]
["4.2.2(b)(c )","Performance Form 1",null,null,null,null,null,6]
["4.2.2(b)(c )","Energy Form 1",null,null,null,null,null,7]
[null,"Permit Compliance",null,null,null,null,null,8]
[null,"Improvements",null,null,null,null,null,9]
[null,"Public Liaison",null,null,null,null,null,10]
["4.2.3 (a)","Residue Quality - Optional",null,null,null,null,null,11]
["4.2.3","Emissions to Water",null,null,null,null,null,12]
["4.2.3","Emissions to Air (periodically monitored)",null,null,null,null,null,13]
["4.2.3","Emissions to Air (continuously monitored)",null,null,null,null,null,14]
[null,"Hydrogen Chloride emissions",null,null,null,null,null,15]
[null,"Sulphur Dioxide emissions",null,null,null,null,null,16]
[null,"Oxides of Nitrogen emissions",null,null,null,null,null,17]
[null,"Total Organic Carbon emissions",null,null,null,null,null,18]
[null,"Particulate Matter emissions",null,null,null,null,null,19]
[null,"Carbon Monoxide emissions",null,null,null,null,null,20]
[]
[]
["Version Control"]
["Section","Information",null,null,null,null,null,"Date"]
[]
[]
[]
[]
[]
[]
["Distribution"]
["Copy","Name, Role",null,null,null,null,null,"No."]
[]
[]
[]
[]
[]
[]
[]
[]
["This report is required under the Industrial Emissions Directive’s Article 55(2) requirements on reporting and public information on waste incineration plants and co-incineration plants, which require the operator to produce an annual report on the functioning and monitoring of the plant and make it available to the public. "]

{"sheet":"Facility Info","index":2,"n_rows":22,"n_cols":11,"rows_kept":22,"cut":false,"hidden":false,"merged":[[21,0,53,8],[4,10,13,13],[21,10,30,13],[4,0,18,8]]}
[{"$f":"+'Cover Page'!$B$29","v":"Annual Performance Report 2021"},null,null,null,{"$f":"+'Cover Page'!$B$33","v":"Ardley Energy Recovery Facility"}]
[]
["Plant Description and Design",null,null,null,null,null,null,null,null,null,"Notes:"]
[]
["Ardley Energy from Waste (EFW) facility is located close to junction 10 of the M40. The facility has a design capacity to process 300,000 tonnes per year of residual municipal waste and has the capability of exporting 26.9MW of electricity.\n\nIn accordance with the requirements of Condition 4.2.3, Schedule 4 and Table S5.1 of Permit EPR/UP3005LJ issued by Environment Agency to Viridor Oxfordshire Limited (Viridor) on 18th December 2020 (previously EPR/FP3134GU issued 29 September 2010), Viridor is required to submit a summary of the environmental monitoring works undertaken at the site on a quarterly basis. Such reports will form the basis of the annual environmental review report, which is to be submitted to the Environment Agency by 31 March as agreed in writing with the Environment Agency of each year in accordance with Condition 4.2.2 of the Permit.\n\nViridor note, in line with Permit variation dated 21 April 2015; 30 minute carbon monoxide (CO) average monitoring was replaced with CO 10 minute average monitoring.\n\nThis report summarises the environmental and performance data collected at the site 1st January – 31st December 2021 and fulfils the requirement of Chapter IV Article 55(2) of the Industrial Emissions Directive.",null,null,null,null,null,null,null,null,null,"Include summary of plant design, design capacity, no. of combustion lines, electrical and heat capacity and any other general information that describes the facility, its location and purpose "]
[]
[]
[]
[]
[]
[]
[]
[]
[]
[]
[]
[]
[]
[]
["Summary of Operational Processes and Procedures"]
[]
["Incoming waste is mainly received Oxfordshire County Council Waste Partnership, the rest is received from third party businesses. Waste is received into an enclosed waste bunker. The waste is loaded into one of two furnaces, which combust the waste at >850°C. The hot gases are put through a variety of heat exchangers used to heat demineralised water to create superheated steam which drives a turbine generator. The turbine generator produces around 30MWh and exports around 26MWh. Combusted waste (incinerator bottom ash) is sent to a third party within the footprint of the facility for further processing. The gasses are treated with Lime, Activated Carbon and Urea to remove potential pollution leaving the stack. The powder containing reacted gas particulates (APCr) is removed and sent via a third party for reprocessing. Emissions are monitored via Continuous Emissions Monitoring equipment (CEMs) provided by A1-CBISS.",null,null,null,null,null,null,null,null,null,"Include summary of key processes and procedures such as (but not limited to); waste reception, control rooms, grate, bed and boiler, energy & heat  generation, cooling systems, residue management, emission controls, health and safety systems, maintenance"]

{"sheet":"Operational Data","index":3,"n_rows":58,"n_cols":11,"rows_kept":58,"cut":false,"hidden":false,"merged":[[3,1,3,2],[7,1,20,1],[25,1,28,1],[30,1,31,1],[49,0,50,0],[5,10,6,10],[7,10,18,10],[35,1,37,1],[32,2,32,5],[32,6,32,7]]}
[{"$f":"+'Cover Page'!$B$29","v":"Annual Performance Report 2021"},null,null,null,{"$f":"+'Cover Page'!$B$33","v":"Ardley Energy Recovery Facility"}]
[]
["Operational Data",null,null,null,null,null,null,null,null,null,"Notes:"]
["Plant Size",326300,null,"tonnes pa",null,"MWth",27,"MWe",null,null,"* - RDF to include SRF "]
["No. of combustion lines",2,null,"No. of Turbines:",null,1,null,null,null,null,"** - CHP plants only"]
[null,null,null,null,null,null,null,null,null,null,"2020 updates include;  heat in MWh, water in Litres, NCV in MJ/kg"]
["Waste types received","Unit","Q1","Q2","Q3","Q4","Year Total","%"]
["Household / Local Authority","tonnes",55797.88,54579.77,53505.120000000003,62629.4,{"$f":"SUM(C8:F8)","v":226512.16999999998},{"$f":"IF(G8>0,G8/$G$18,\"-\")","v":0.67914188781466633},null,null,"Availability Definition: 'the availability of a line is to be calculated by the number of hours the line reported Continuously Monitored emission levels to the Regulator through the calendar year divided by the total number of hours in that year. \nThe overall plant availability is calculated as the Mean of all lines in the plant. For clarity this includes periods of Other Than Normal Operating Conditions (OTNOC) and abnormal operation.'  \n\nRationale: The primary function of an Energy from Waste facility is the disposal of waste. It follows therefore that the availability of a plant is determined by the period of time a facility spends undertaking this activity."]
["Commercial & Industrial ",null,25709.05,26754.639999999999,31008.74,23542.42,{"$f":"SUM(C9:F9)","v":107014.85},0.32085811218533361]
["Hazardous ",null,"-","-","-","-",0,"-"]
["Clinical",null,"-","-","-","-",0,"-"]
["Waste wood (biomass) ",null,"-","-","-","-",0,"-"]
["Refuse Derived Fuel * - H'hold/LA",null,"-","-","-","-",{"$f":"SUM(C13:F13)","v":0},"-"]
["Refuse Derived Fuel *  - C&I",null,"-","-","-","-",0,"-"]
["Other [Please specify]",null,"-","-","-","-",0,"-"]
["Other [Please specify]",null,"-","-","-","-"]
["Other [Please specify]",null,"-","-","-","-"]
["Total waste received",null,{"$f":"SUM(C8:C17)","v":81506.929999999993},{"$f":"SUM(D8:D17)","v":81334.41},{"$f":"SUM(E8:E17)","v":84513.86},{"$f":"SUM(F8:F17)","v":86171.82},{"$f":"SUM(G8:G17)","v":333527.02},{"$f":"IF(G18>0,G18/$G$18,\"-\")","v":1}]
["Rejected Waste ",null,0,0,0,0,{"$f":"SUM(C19:F19)","v":0},{"$f":"IF(G19>0,G19/$G$18,\"-\")","v":"-"}]
["Unprocessed waste transferred out",null,"-","-","-","-",{"$f":"SUM(C20:F20)","v":0},{"$f":"IF(G20>0,G20/$G$18,\"-\")","v":"-"}]
["Total waste combusted",null,77865.3,78051.240000000005,79346.06,78570.64,{"$f":"SUM(C21:F21)","v":313833.24},{"$f":"IF(G21>0,G21/$G$18,\"-\")","v":0.94095296986732879}]
["NOTE: Total recieved line (as per template calculation) is total available for combustion"]
["Total waste combusted above is actual weights as recorded by the cranes and DCS from feeding the boiler (quarterly calibrated)."]
[]
["Energy Usage / Export","Unit","Q1","Q2","Q3","Q4","Year Total","KWh/te"]
["Power Generated","MWh",62648,63966,64264,62463,{"$f":"SUM(C26:F26)","v":253341},{"$f":"IF(G26>0,G26*1000/$G$21,\"-\")","v":807.24718643570077}]
["Power Exported",null,55942,57118,57057,55337,{"$f":"SUM(C27:F27)","v":225454},{"$f":"IF(G27>0,G27*1000/$G$21,\"-\")","v":718.38789288221994}]
["Power Used on site",null,6708,6851,7208,7134,{"$f":"SUM(C28:F28)","v":27901},{"$f":"IF(G28>0,G28*1000/$G$21,\"-\")","v":88.903903232175153}]
["Power Imported",null,2,3,1,8,14,{"$f":"IF(G29>0,G29*1000/$G$21,\"-\")","v":4.4609678694328241E-2}]
["Parasitic Load","%",{"$f":"IF(C26>0,1-C27/(C26+C29),\"-\")","v":0.10707102952913006},{"$f":"IF(D26>0,1-D27/(D26+D29),\"-\")","v":0.10709875095749499},0.11216058507741389,0.11419698740215456,0.11012610763553121]
["Thermal Energy Produced **","MWh","-","-","-","-",{"$f":"SUM(C31:F31)","v":0},{"$f":"IF(G31>0,G31*1000/$G$21,\"-\")","v":"-"}]
["Thermal Energy Exported **",null,"-","-","-","-",0,{"$f":"IF(G32>0,G32*1000/$G$21,\"-\")","v":"-"}]
["R1 value",null,"Subject to confirmation",null,null,null,"Operational "]
[]
["Waste Disposal & Recovery","Unit","Q1","Q2","Q3","Q4","Year Total","% inputs"]
["APC Residues - produced","tonnes",1871,1928.38,1719.39,1708.86,{"$f":"SUM(C36:F36)","v":7227.63},{"$f":"IF(G36>0,G36/$G$21,\"-\")","v":2.3030160858677685E-2}]
["IBA - produced",null,13979,17322,18496,17971.5,67768.5,{"$f":"IF(G37>0,G37/$G$21,\"-\")","v":0.21593792932832737}]
["Metals recycling",null,1750.06,1547,1566.39,1291.58,{"$f":"SUM(C38:F38)","v":6155.03},{"$f":"IF(G38>0,G38/$G$21,\"-\")","v":1.9612422189567939E-2}]
[]
["Raw Material Usage","Unit","Q1","Q2","Q3","Q4","Year Total","kg or Ltr /te"]
["Mains Water","ltrs",7045000,7815000,7593000,8340000,{"$f":"SUM(C41:F41)","v":30793000},{"$f":"IF(G41>0,G41/$G$21,\"-\")","v":98.118988288174961}]
["Other Water","ltrs","-","-","-",null,0,"-"]
["Urea","kgs",93000,91000,94000,119000,{"$f":"SUM(C43:F43)","v":397000},1.2650030315463079]
["Activated Carbon","kgs",19910,20880,19570,18020,78380,0.24975047257581767]
["Lime / hydrated lime","kgs",1039360,1138550,951260,882520,4011690,12.782871565803546]
["Fuel oil","ltrs",18963.5,22118,68901,80237,190219.5,0.60611648402826934]
["Gas","cf",0,0,0,0,0,"-"]
[]
["Summary ","Line/Unit","Q1","Q2","Q3","Q4","Year Total",null,null,"Hrs in year "]
["Availability of waste combustion by line, hrs",1,2159.5,2184,2162.5,2109.75,{"$f":"SUM(C50:F50)","v":8615.75},{"$f":"(G50/J50)","v":0.98353310502283109},null,8760]
[null,2,2158,2176.5,2199.5,2089,8623,{"$f":"(G51/J50)","v":0.98436073059360729}]
["Overall Availability, mean avg. of all lines, hrs",null,{"$f":"AVERAGE(C50:C51)","v":2158.75},{"$f":"AVERAGE(D50:D51)","v":2180.25},{"$f":"AVERAGE(E50:E51)","v":2181},{"$f":"AVERAGE(F50:F51)","v":2099.375},{"$f":"AVERAGE(G50:G51)","v":8619.375},{"$f":"(G52/J50)","v":0.98394691780821919}]
["Hours of turbine operations, hrs",1,2159.25,2183,2207.25,2202.5,8752,{"$f":"(G53/J50)","v":0.99908675799086755}]
["Hours of heat / steam export",null,"-","-","-","-",0,{"$f":"IF(B54>0,#REF!/J50,\"n/a\")","v":"n/a"}]
["Net Calorific Value of waste","MJ/kg",10.47,10.57,10.56,10.45,null,"-"]
["Abnormal Events","qty.",0,0,0,0,0,{"$f":"IF(G56>0,\"yes\",\"no\")","v":"no"}]
["Abnormal operation","hours",0,0,0,0,0,{"$f":"+(G57)/J50","v":0}]
["Permit Breaches","qty.",0,1,null,0,1,{"$f":"IF(G58>0,\"yes\",\"no\")","v":"yes"}]

{"sheet":"Operational Summary","index":4,"n_rows":34,"n_cols":11,"rows_kept":34,"cut":false,"hidden":false,"merged":[[4,0,29,8],[33,0,48,8],[4,10,13,13],[33,10,42,13]]}
[{"$f":"+'Cover Page'!$B$29","v":"Annual Performance Report 2021"},null,null,null,{"$f":"+'Cover Page'!$B$33","v":"Ardley Energy Recovery Facility"}]
[]
["Summary of Plant Operations and Maintenance during the reporting year",null,null,null,null,null,null,null,null,null,"Notes:"]
[]
["The plant operated steadily throughout the year of 2021 with 281 hrs off burning waste across both lines including one short maintenance period on each line. \n\nNo annual shutdown period for maintenance was conducted in 2021.  The last maintenance outage commenced on 11th October 2020 concluding on 10th November 2020. The site has now moved to an 18-month outage schedule. The next shutdown, during which the plant combustion systems, FGT and ancillary systems will undergo checks, repair as required and legal compliance inspections under PSSR, will commence on the 4th April 2022. \n\nDuring 2021, the site conducted a trial to operate at 105% Maximum Continuous Rating (MCR) of the original design heat release as defined by the Firing Diagram. The trial began in July 2021 and was completed in November with the assistance of CNIM who designed and built the facility.\n\nThe total waste received figure reported under operational data is the total amount of waste available for combustion, the total waste combusted figure is actual weights as recorded by the cranes and DCS feeding each line. The waste cranes are calibrated quarterly. \n\nThe combined impact of improved availability of the boilers from previous improvement projects, the 18-month outage schedule and the MCR increase trial, the site has processed waste volumes greater than previously achieved over the annual period.  Leading up to the pattern of weekend and bank holidays over the 2021 Christmas and New Year periods, the site increased bunker levels to ensure that combustion could be maintained without support from the burners. This is reflected in the waste accepted figure. \nThe discrepancy between the two figures may be attributed to the bunker storage levels at the end of each reporting period, moisture loss through evaporation during mixing  and the difference in calibration accuracy between the weighbridge and crane load cells. \n\nThe Net CV reported is a calculated value from the DCS.\n\nIn July the plant successfully underwent a continuation audit for ISO50001. \n\nThe CEMS underwent QAL2 calibration checks in July 2021 and the calibration factors were applied.",null,null,null,null,null,null,null,null,null,"Include summary of key operational and/or maintenance activity undertaken in the year, such as any major component upgrades and/or replacements "]
[]
[]
[]
[]
[]
[]
[]
[]
[]
[]
[]
[]
[]
[]
[]
[]
[]
[]
[]
[]
[]
[]
[]
[]
[]
[]
["Summary of Residue Handling for the reporting year"]
[]
["All IBA produced on site (including the metal content) is conveyed to the Fortis IBA facility, based within the footprint of Ardley ERF, for reprocessing. They remove and recycle the ferrous and non-ferrous metals and then create IBAA (Incinerator Bottom Ash Aggregate) from the remaining material. Their Aggregates team then utilise this in various construction and highways projects. There have been no hazardous results from IBA testing in 2021.\n\nAPCr is collected by direct transfer from the on-site silo into transport tanker by Grundons and goes to one of three reprocesses or for disposal. APCr to the O.C.O Technology Ltd (formally Carbon8) site at Brandon (EPR/JP3332FK), Anonmouth (EPR/HP3638WW), or Leeds (EPR/TP3737YG) is taken through their accelerated carbonation technology. These carbonated wastes are blended with binders and fillers and pelletised to form an aggregate. APCr sent to Grundon APCr plant at Wingmoor Farm landfill site, Gloucestershire (EPR/NP3831ST) is mixed with water before it is transferred to a hazardous waste cell in the landfill."]

{"sheet":"Perf. Form 1","index":5,"n_rows":51,"n_cols":10,"rows_kept":51,"cut":false,"hidden":false,"merged":[[8,0,8,1],[8,2,8,3],[8,4,8,5],[8,6,8,7],[8,8,8,9],[2,0,2,4],[3,1,3,4],[5,3,5,4],[5,6,5,7],[2,6,2,9],[9,0,9,9],[10,0,10,1],[10,2,10,3],[10,4,10,5],[10,6,10,7],[10,8,10,9],[12,0,12,1],[12,2,12,3],[12,4,12,5],[12,6,12,7],[12,8,12,9],[11,0,11,1],[11,2,11,3],[11,4,11,5],[11,6,11,7],[11,8,11,9],[16,0,16,9],[13,0,13,1],[13,2,13,3],[13,4,13,5],[13,6,13,7],[13,8,13,9],[14,0,14,3],[14,4,14,5],[14,6,14,7],[14,8,14,9],[15,0,15,1],[15,2,15,3],[15,4,15,5],[15,6,15,7],[15,8,15,9],[19,0,19,3],[19,4,19,5],[19,6,19,7],[19,8,19,9],[17,0,17,1],[17,2,17,3],[17,4,17,5],[17,6,17,7],[17,8,17,9],[18,0,18,1],[18,2,18,3],[18,4,18,5],[18,6,18,7],[18,8,18,9],[30,0,30,3],[30,4,30,5],[30,7,30,8],[20,0,20,3],[20,4,20,5],[20,6,20,7],[20,8,20,9],[22,0,22,9],[23,0,25,9],[28,0,28,3],[28,7,28,8],[29,0,29,3],[29,4,29,5],[29,7,29,8],[33,0,33,3],[33,4,33,5],[33,7,33,8],[31,0,31,3],[31,4,31,5],[31,7,31,8],[32,0,32,3],[32,4,32,5],[32,7,32,8],[50,7,50,8],[34,7,34,8],[34,4,34,5],[34,0,34,3],[44,0,44,1],[46,0,46,9],[47,0,48,9],[35,0,35,9],[40,0,40,1],[40,2,40,9],[42,0,42,1],[43,0,43,1],[36,0,37,9]]}
[{"$f":"+'Cover Page'!C39","v":2021}," Annual Reporting Performance Form 1"]
[]
[{"$f":"+'Cover Page'!B31","v":"Permit EPR/ UP3005LJ"},null,null,null,null,"Operator: ","VIRIDOR OXFORDSHIRE LIMITED"]
["Facility:",{"$f":"+'Cover Page'!B33:I33","v":"Ardley Energy Recovery Facility"},null,null,null,"Form:","Performance 1"]
[]
["Reporting  Period from: ",null,null,"2021-01-01",null,"to:","2021-12-31"]
[]
[{"$f":"+A1","v":2021},"Annual Reporting of Waste Disposal and Recovery"]
["Waste Description",null,"Disposal Route(s)",null,"Disposal Tonnes",null,"Recovery Tonnes",null,"% / tonne of waste incinerated"]
["1) Hazardous Wastes"]
["APC Residues",null,"OCO Technology",null,null,null,5956.18,null,{"$f":"IF((E11+G11)>0,(E11+G11)/'Operational Data'!$G$21, \"-\")","v":1.8978805431827426E-2}]
["APC Residues",null,"Grundon ",null,1272.3599999999999,null,null,null,{"$f":"IF((E12+G12)>0,(E12+G12)/'Operational Data'!$G$21, \"-\")","v":4.0542550559653908E-3}]
[null,null,null,null,null,null,null,null,{"$f":"IF((E13+G13)>0,(E13+G13)/'Operational Data'!$G$21, \"-\")","v":"-"}]
[null,null,null,null,null,null,null,null,{"$f":"IF((E14+G14)>0,(E14+G14)/'Operational Data'!$G$21, \"-\")","v":"-"}]
["Total Hazardous Waste",null,null,null,{"$f":"SUM(E11:F14)","v":1272.3599999999999},null,{"$f":"SUM(G11:H14)","v":5956.18},null,{"$f":"IF((E15+G15)>0,(E15+G15)/'Operational Data'!$G$21, \"-\")","v":2.3033060487792818E-2}]
[]
["2) Non-Hazardous Wastes"]
["IBA",null,"Fortis IBA",null,null,null,{"$f":"'Operational Data'!G37","v":67768.5},null,{"$f":"IF((E18+G18)>0,(E18+G18)/'Operational Data'!$G$21, \"-\")","v":0.21593792932832737}]
["Ferrous Metal",null,"VRM",null,null,null,{"$f":"'Operational Data'!G38","v":6155.03},null,{"$f":"IF((E19+G19)>0,(E19+G19)/'Operational Data'!$G$21, \"-\")","v":1.9612422189567939E-2}]
["Total Non-Hazardous Waste",null,null,null,{"$f":"SUM(E18:F19)","v":0},null,{"$f":"SUM(G18:H19)","v":73923.53},null,{"$f":"IF((E20+G20)>0,(E20+G20)/'Operational Data'!$G$21, \"-\")","v":0.2355503515178953}]
["TOTAL WASTE",null,null,null,{"$f":"+E20+E15","v":1272.3599999999999},null,{"$f":"+G20+G15","v":79879.709999999992},null,{"$f":"IF((E21+G21)>0,(E21+G21)/'Operational Data'!$G$21, \"-\")","v":0.25858341200568807}]
[]
["Operator’s comments :"]
["All IBA produced on site (including the metal content) is reprocessed by Fortis IBA who separate the ferrous and non-ferrous metals to return to Ardley ERF ownership and create IBAA (Incinerator Bottom Ash Aggregate) from the remaining material. Oversize metals returned to Ardley ERF ownership are managed through Viridor Resource Management for recycling.\nAPCr is taken either through OCO Technologies accelerated carbonation technology where carbonated wastes are blended with binders and fillers and pelletised to form an aggregate, or are sent to Hazardous waste landfill."]
[]
[]
[]
[{"$f":"+A1","v":2021},"Annual Reporting of Water and Other Raw Material Usage"]
["Raw Material",null,null,null,"Usage",null,"Unit","Specific Usage",null,"Unit"]
["Mains Water",null,null,null,{"$f":"+'Operational Data'!G41/1000","v":30793},null,"m3",{"$f":"IF(E30>0,E30/'Operational Data'!$G$21,\"-\")","v":9.811898828817496E-2},null,"m3/te"]
["Total Water",null,null,null,{"$f":"+'Operational Data'!G42+'Operational Data'!G41/1000","v":30793},null,"m3",{"$f":"IF(E31>0,E31/'Operational Data'!$G$21,\"-\")","v":9.811898828817496E-2},null,"m3/te"]
["Urea / Ammonia",null,null,null,{"$f":"+'Operational Data'!G43","v":397000},null,"kg",{"$f":"IF(E32>0,E32/'Operational Data'!$G$21,\"-\")","v":1.2650030315463079},null,"kg/te"]
["Activated Carbon",null,null,null,{"$f":"+'Operational Data'!G44","v":78380},null,"kg",{"$f":"IF(E33>0,E33/'Operational Data'!$G$21,\"-\")","v":0.24975047257581767},null,"kg/te"]
["Lime / hydrated lime / Sodium Bicarb.",null,null,null,{"$f":"+'Operational Data'!G45","v":4011690},null,"kg",{"$f":"IF(E34>0,E34/'Operational Data'!$G$21,\"-\")","v":12.782871565803546},null,"kg/te"]
[]
["Operator’s comments :"]
["Water reported in litres in operational data, converted to m3 for specific usage"]
[]
[]
[{"$f":"+A28","v":2021},"Annual Reporting of other performance indicators "]
["Parameter",null,"Results by Line"]
[null,null,"A1","A2","A3","A4","A5",null,"Turbine 1","Turbine 2"]
["Operating hours for the year, hours",null,{"$f":"'Operational Data'!G50","v":8615.75},{"$f":"'Operational Data'!G51","v":8623},null,null,null,null,{"$f":"'Operational Data'!G53","v":8752}]
["Number of periods of abnormal operation, qty.",null,0,0,null,null,null,null,0]
["Cumulative hours of abnormal operation for this year, hours",null,0,0,null,null,null,null,0]
[]
["Operator’s comments :"]
[]
[]
[]
["Signed: ","H. Edwards",null,null,null,null,"Date:","2022-01-26"]

{"sheet":"Energy Form 1","index":6,"n_rows":29,"n_cols":8,"rows_kept":29,"cut":false,"hidden":false,"merged":[[2,6,2,8],[4,1,4,4],[6,3,6,4],[6,6,6,7],[8,0,8,2],[8,3,8,4],[8,6,8,8],[9,0,9,2],[9,3,9,4],[9,6,9,8],[10,0,10,2],[10,3,10,4],[10,6,10,8],[11,0,11,2],[11,3,11,4],[11,6,11,8],[12,0,12,2],[12,3,12,4],[12,6,12,8],[13,0,13,2],[13,3,13,4],[13,6,13,8],[14,0,14,2],[14,3,14,4],[14,6,14,8],[28,1,28,2],[28,7,28,8],[15,0,15,2],[15,3,15,4],[15,6,15,8],[17,0,17,8],[18,0,24,8]]}
[{"$f":"+'Cover Page'!C39","v":2021}," Annual Reporting of Energy Usage/Export"]
[]
[{"$f":"+'Cover Page'!B31","v":"Permit EPR/ UP3005LJ"},null,null,null,null,"Operator: ","VIRIDOR OXFORDSHIRE Ltd"]
[]
["Facility:",{"$f":"+'Cover Page'!B33:I33","v":"Ardley Energy Recovery Facility"},null,null,null,"Form:","Energy 1"]
[]
["Reporting  Period from: ",null,null,{"$f":"+'Perf. Form 1'!D6:E6","v":"2021-01-01"},null,"to:",{"$f":"+'Perf. Form 1'!G6:H6","v":"2021-12-31"}]
[]
["Energy Source",null,null,"Energy Usage",null,"Unit","Specific Useage (KWh/tonne incinerated"]
["Electricity Produced",null,null,{"$f":"+'Operational Data'!G26","v":253341},null,"MWh",{"$f":"+'Operational Data'!H26","v":807.24718643570077}]
["Electricity Imported   ",null,null,{"$f":"+'Operational Data'!G29","v":14},null,"MWh",{"$f":"+'Operational Data'!H29","v":4.4609678694328241E-2}]
["Electricity Exported",null,null,{"$f":"+'Operational Data'!G27","v":225454},null,"MWh",{"$f":"+'Operational Data'!H27","v":718.38789288221994}]
["Gas Oil",null,null,{"$f":"('Operational Data'!G46*0.85)/1000","v":161.68657499999998},null,"tonnes"]
["Steam/hot water exported",null,null,{"$f":"+'Operational Data'!G32","v":0},null,"GWh","-"]
[]
[]
[]
["Operator’s comments :"]
["\nMass diesel (gas oil) calculated with density = 0.85 kg/l (tonnes=(litres fuel oil used*0.85)/1000))"]
[]
[]
[]
[]
[]
[]
[]
[]
[]
["Signed: ","H.Edwards",null,null,null,null,"Date:","2022-01-26"]

{"sheet":"Permit Compliance","index":7,"n_rows":25,"n_cols":12,"rows_kept":25,"cut":false,"hidden":false,"merged":[[8,11,17,14],[25,4,25,8],[9,0,9,1],[9,2,9,4],[9,5,9,8],[10,0,10,1],[10,2,10,4],[10,5,10,8],[11,0,11,1],[11,2,11,4],[11,5,11,8],[12,0,12,1],[12,2,12,4],[12,5,12,8],[13,0,13,1],[13,2,13,4],[7,0,7,1],[7,2,7,8],[8,0,8,1],[8,2,8,4],[8,5,8,8],[13,5,13,8],[14,0,14,1],[14,2,14,4],[14,5,14,8],[15,0,15,1],[15,2,15,4],[15,5,15,8],[16,0,16,8],[19,1,19,3],[19,4,19,6],[19,7,19,9],[20,1,20,3],[20,4,20,6],[20,7,20,9],[17,0,17,8],[18,0,18,9],[22,0,22,9],[24,1,24,3],[24,4,24,6],[24,7,24,9],[23,1,23,3],[23,4,23,6],[23,7,23,9]]}
[{"$f":"+'Cover Page'!$B$29","v":"Annual Performance Report 2021"},null,null,null,{"$f":"+'Cover Page'!$B$33","v":"Ardley Energy Recovery Facility"}]
[]
["Summary of Permit Compliance"]
[]
["Compliance with permit limits for continuously monitored pollutants"]
[]
["The plant met its emission limits as shown in the table below:"]
["Substance",null,"Percentage time compliant during operation",null,null,null,null,null,null,null,null,"Notes:"]
[null,null,"Half-hourly limit",null,null,"Daily limit",null,null,null,null,null,"Report to 2 decimal places, i.e. xx.xx%\n\nPlease provide a brief summary of each notification or non-compliance in the table (rather than just referring to notifications that were sent to the Regulator).  \n\n"]
["Particulates",null,1,null,null,1]
["Oxides of nitrogen",null,1,null,null,1]
["Sulphur dioxide",null,1,null,null,1]
["Carbon monoxide",null,"100% 95% of 10-min averages",null,null,1]
["Total organic carbon",null,0.99995000000000001,null,null,1]
["Hydrogen chloride",null,1,null,null,1]
["Hydrogen fluoride",null,1,null,null,1]
["1/2 hourly % = (No. half hour exceedance / (2 x 15535)) x 100,    15,535hrs running during year across 2 lines"]
["Daily % = (No.Daily exceedance / (No. operational hours/24)) x 100"]
["Summary of any notifications or non-compliances under the permit"]
["Date","Summary of notification or non-compliance ",null,null,"Reason ",null,null,"Measures taken to prevent reoccurrence"]
["2021-04-27","Tuesday 27th April 2021, 10:30-10:59, A2 Stack Emissions HCl reading of 109.45mg/m3 against a limit of 60 mg/m3 ½ hour average.",null,null,"A pocket of waste giving rise to elevated HCL has entered the grate resulting in a significant spike in readings. The levels were substantially reduced by the lime abatement system and levels returned to normal following the incident. ",null,null,"No further actions "]
[]
["Summary of any complaints received and actions to taken to resolve them."]
["Date","Summary of complaint ",null,null,"Reason *",null,null,"Measures taken to prevent reoccurrence"]
[null,"No complaints received"]

{"sheet":"Improvements","index":8,"n_rows":35,"n_cols":5,"rows_kept":35,"cut":false,"hidden":false,"merged":[[33,0,33,9],[34,0,46,9],[4,0,4,9],[5,0,17,9],[19,0,19,9],[20,0,24,9],[26,0,26,9],[27,0,31,9]]}
[{"$f":"+'Cover Page'!$B$29","v":"Annual Performance Report 2021"},null,null,null,{"$f":"+'Cover Page'!$B$33","v":"Ardley Energy Recovery Facility"}]
[]
["Summary of Plant Improvements"]
[]
["Summary of any efficiency improvements that have been completed within the year."]
["Lime consumption / APCR production reduction. The Lime consumption per tonne of waste at Ardley has been highlighted as higher than the original design rate. An initial study carried out in 2021 considered the impact on lime consumption in relation to flue gas temperatures after the final economiser.  An options assessment has been completed and a project is underway to improve the performance of the main economisers in 2022. \n\nDecant pit & effluent treatment. A review was conducted with an external Water Chemistry specialist and Viridor’s ERF Chemist to identify methods of treatment and recycling of effluent in order to reduce tanker offtake volumes from the site decant pit. Further works on this project will continue in 2022. \n\nNo annual shutdown period for maintenance was conducted in 2021 and the site has now moved to an 18-month outage schedule due to previous projects to reduce wear on the boiler and water systems. \n\nDuring 2021, the site conducted a trial to operate at 105% Maximum Continuous Rating (MCR) of the original design heat release as defined by the Firing Diagram. The trial began in July 2021 and was completed in November with the assistance of CNIM who designed and built the facility."]
[]
[]
[]
[]
[]
[]
[]
[]
[]
[]
[]
[]
[]
["Summary of any permit improvement conditions that have been completed within the year and the resulting environmental benefits."]
["All Improvement Conditions associated with Ardley Energy Recovery Facility's Environmental Permit were completed prior to the calendar year of 2021. "]
[]
[]
[]
[]
[]
["Summary of any changes to the plant or operating techniques which required a variation to the permit and a summary of the resulting environmental impact."]
["No changes to the plant or operating techniques which required a variation to the Permit were undertaken during the review period of 2021. "]
[]
[]
[]
[]
[]
["Summary of any other improvements made to the plant or planned to be made and a summary of the resulting environmental benefits."]
["Following the study on lime consumption carried out in 2021, there is an improvement project now in place to make the following additions to site:\n1.\tInstall one additional economiser bundle to each line in order to increase the total heat transfer surface area. \n2.\tInstall an additional sootblower on L2 final economiser to improve cleaning in this area. \n\nThe decant pit & effluent treatment improvement project will continue through 2022 to increase water efficiencies on site and reduce wastewater volumes removed from site. \n\nIn partnership with the technology provider Martin Grate GmBH, Grate modifications have been scheduled for the 2022 outage period to allow for improved grate expansion. This change is planned to improve waste control through the boiler, prevent the loss of grate bars leading to operational downtime and increase control of Under Fire Air.\n\nIn 2022, Viridor Ardley plan to submit a permit variation to the EA for an increased permitted waste tonnage. The move to an 18 month outage schedule, existing MCR improvements, and long term continual improvement ambitions will allow the site to recover more waste material and support landfill diversion. "]

{"sheet":"Public Liasion","index":9,"n_rows":25,"n_cols":5,"rows_kept":25,"cut":false,"hidden":false,"merged":[[5,0,5,1],[5,2,5,9],[6,0,7,1],[6,2,7,9],[10,0,11,1],[10,2,11,9],[8,0,9,1],[8,2,9,9],[24,0,24,9],[12,0,13,1],[21,0,22,1],[21,2,22,9],[12,2,13,9],[20,0,20,1],[20,2,20,9],[14,0,15,1],[14,2,15,9],[19,0,19,9],[16,0,17,9]]}
[{"$f":"+'Cover Page'!$B$29","v":"Annual Performance Report 2021"},null,null,null,{"$f":"+'Cover Page'!$B$33","v":"Ardley Energy Recovery Facility"}]
[]
["Details of Public & Stakeholder Liaison"]
[]
["Summary of events held during the reporting year."]
["Date",null,"Description"]
["January",null,"Public Liaison Meeting scheduled for councillors and residents of Middleton Stoney, Ardley & fewcott"]
[]
["Bi-Annually",null,"Waste Collection Authority Meetings"]
[]
["Online event",null,"Through 2021 a total of 939 individuals attended 36 live events, the vast majority were live online events hosted using MS Teams. "]
[]
["Online event",null,"A community talk was hosted online with 419 views to date. "]
[]
["As requested",null,"Environment Agency visits and site tours - as requested"]
[]
["Note: due to Covid 19 restrictions, site visitor centre activities have been adapted from previous years."]
[]
[]
["List of events planned for next year"]
["Date",null,"Description"]
[null,null,"As above. With the easing of Covid 19 restrictions it is hoped that Visitor Centre activities will recommence in 2022. Dates for this have not been confirmed."]
[]
[]
["If you wish to be involved in the public liaison programme, please contact Jessica Baker- Pike 01869 876 345."]

{"sheet":"Residue Quality ","index":10,"n_rows":34,"n_cols":6,"rows_kept":34,"cut":false,"hidden":false,"merged":[[16,0,17,1],[16,2,17,6],[12,0,12,6],[13,0,13,1],[13,2,13,6],[5,0,6,6],[7,0,8,6],[9,0,10,6],[14,0,15,1],[14,2,15,6],[18,0,19,1],[18,2,19,6],[20,0,21,1],[20,2,21,6],[29,3,29,4],[25,2,26,2],[26,3,26,4],[26,5,26,6],[25,3,25,6],[24,0,24,6],[33,0,38,6],[30,3,30,4],[32,0,32,6],[25,0,26,1],[27,0,27,1],[28,0,28,1],[29,0,29,1],[30,0,30,1],[27,3,27,4],[27,5,27,6],[28,5,28,6],[29,5,29,6],[30,5,30,6],[28,3,28,4]]}
[{"$f":"+'Cover Page'!$B$29","v":"Annual Performance Report 2021"},null,null,null,{"$f":"+'Cover Page'!$B$33","v":"Ardley Energy Recovery Facility"}]
[]
["Residue Quality Monitoring Requirements"]
[]
["Summary of monitoring undertaken and compliance"]
["IBA undergoes quarterly sampling as required by permit condition 3.5.1c and table 4.4 including TOC (separate lines), dioxins & furans and metals. TOC has a limit of <3%."]
[]
["24 samples of IBA are taken each year (including the 4 permit compliance samples) to undergo basic hazard analysis as required by the ESA protocol."]
[]
["APCr is sampled quarterly as per permit condition 3.5.1c and table 4.5"]
[]
[]
["Commentary on any specific events"]
["Date & Event",null,"Description"]
[]
[]
[]
[]
[]
[]
[]
[]
[]
[]
["Residue Quality Monitoring Results"]
["Parameter (unit) ",null,"Limit","Normal Operation "]
[null,null,null,"Bottom ash  ",null,"APC Residues"]
["Loss on Ignition (average %)",null,"-"]
["Total Organic Carbon (average %)",null,"<3%",1.28]
["No. of Assessments Undertaken",null,"---","4 Permit compliance samples\n24 ESA hazard assessment - (including 4 above).",null,4]
["No. of Hazardous Results",null,"---",0]
[]
["Comments :"]
["All IBA remained non-hazardous as per the ESA protocol within 2021.\nTOC Value above is average of the four quarters of samples on each line (8 samples)."]

{"sheet":"Water","index":11,"n_rows":24,"n_cols":10,"rows_kept":24,"cut":false,"hidden":false,"merged":[[5,0,6,9],[7,0,8,9],[9,0,10,9],[12,0,12,9],[13,0,13,1],[13,2,13,9],[21,0,21,9],[22,0,22,2],[22,3,22,5],[14,0,15,1],[14,2,15,9],[16,0,17,1],[16,2,17,9],[18,0,19,1],[18,2,19,9],[23,0,23,2],[23,3,23,5],[24,0,24,2],[24,3,24,5],[25,0,25,2],[25,3,25,5],[29,0,29,2],[29,3,29,5],[26,0,26,2],[26,3,26,5],[27,0,27,2],[27,3,27,5],[28,0,28,2],[28,3,28,5]]}
[{"$f":"+'Cover Page'!$B$29","v":"Annual Performance Report 2021"},null,null,null,{"$f":"+'Cover Page'!$B$33","v":"Ardley Energy Recovery Facility"}]
[]
["Emissions to Water"]
[]
["Summary of monitoring undertaken and compliance"]
["Permit Condition 3.5.1(a) and Table S4.2 requires Viridor to ensure sample point W1\nis free of oil and grease."]
[]
["Sample point W1 has remained free of oil and grease. No Permit limit exceedances were recorded for W1 during the review period for emissions to water."]
[]
[]
[]
[]
["Commentary on any specific events"]
["Date & Event",null,"Description"]
[]
[]
[]
[]
[]
[]
[]
["Emissions to Water / Sewer"]
["Parameter",null,null,"Monitoring Frequency",null,null,"Limit","Target","Max.","Average"]
["Oil & Grease",null,null,"Not set",null,null,"free of oil and grease","-","-","-"]

{"sheet":"Air (periodic)","index":12,"n_rows":38,"n_cols":13,"rows_kept":38,"cut":false,"hidden":false,"merged":[[5,12,8,15],[9,12,12,15],[12,0,12,1],[9,2,10,2],[11,0,11,1],[11,2,12,2],[11,3,11,4],[8,0,8,9],[5,0,6,9],[10,7,35,7],[9,3,10,4],[9,0,10,1],[9,5,9,6],[9,8,9,9],[35,3,35,4],[27,3,27,4],[14,0,14,1],[15,0,15,1],[16,0,16,1],[13,0,13,1],[12,3,12,4],[13,3,13,4],[13,2,15,2],[14,3,14,4],[15,3,15,4],[16,3,16,4],[35,0,35,1],[25,0,25,1],[26,0,26,1],[27,0,27,1],[28,0,28,1],[29,0,29,1],[30,0,30,1],[28,3,28,4],[34,3,34,4],[17,0,17,1],[18,0,18,1],[19,0,19,1],[20,0,20,1],[21,0,21,1],[17,3,17,4],[18,3,18,4],[31,0,31,1],[32,0,32,1],[33,0,33,1],[34,0,34,1],[22,0,22,1],[30,3,30,4],[16,2,35,2],[37,0,38,9],[19,3,19,4],[25,3,25,4],[31,3,31,4],[20,3,20,4],[21,3,21,4],[22,3,22,4],[29,3,29,4],[23,3,23,4],[24,3,24,4],[26,3,26,4],[23,0,23,1],[24,0,24,1],[36,0,36,9],[32,3,32,4],[33,3,33,4]]}
[{"$f":"+'Cover Page'!$B$29","v":"Annual Performance Report 2021"},null,null,null,{"$f":"+'Cover Page'!$B$33","v":"Ardley Energy Recovery Facility"}]
[]
["Emissions to Air (periodically monitored)"]
[]
["Summary of monitoring undertaken, standards used and compliance",null,null,null,null,null,null,null,null,null,null,null,"Notes:"]
["All analysis below completed by permit specified BS EN method other than nitrous oxide which was completed by allowed alternative method M22. Monitoring was undertaken in January and  July 2021. ",null,null,null,null,null,null,null,null,null,null,null,"Template may require adjustment for any bespoke monitoring requirements of permit. "]
[]
[]
["Results of emissions to air that are periodically monitored"]
["Substance",null,"Ref. Period","Emission Limit Value",null,"Average H1",null,null,"Average H2",null,null,null,"User to add additional tables as necessary, depending on whether quarterly or bi-annual reporting is required for the compliance year"]
[null,null,null,null,null,"L1","L2 ",null,"L1","L2 "]
["Nitrous Oxide ",null,"1hr","-",null,9,16.2,null,8.4,6.4]
["Hydrogen fluoride",null,null,"1 mg/m3",null,0.62,"<0.03",null,4.2000000000000003E-2,3.2000000000000001E-2]
["Cd and Th and their compounds",null," \nMaximum 8 hours ","0.05 mg/m3",null,1E-3,1.1999999999999999E-3,null,8.3000000000000001E-4,"<0.0010"]
["Hg and its compounds",null,null,"0.05 mg/m3",null,1.2E-2,3.3999999999999998E-3,null,4.7000000000000002E-3,4.4000000000000003E-3]
["Sb, As, Pb, Cr, Co, Cu, Mn, Ni, V and their compounds",null,null,"0.5 mg/m3",null,4.5999999999999999E-2,7.3999999999999996E-2,null,5.8000000000000003E-2,3.5000000000000003E-2]
["Dioxins & Furans (I-TEQ)",null,"6-8hrs","0.1 ng/m3",null,6.2500000000000001E-4,2.1670000000000001E-3,null,1.4E-3,1.1000000000000001E-3]
["PCBs (WHO-TEQ Humans / Mammals)",null,null,"None set ng/m3",null,9.0000000000000006E-5,1.94E-4,null,6.7000000000000002E-5,6.3E-5]
["PCBs (WHO-TEQ Fish)",null,null,"None set ng/m3",null,3.9999999999999998E-6,1.0000000000000001E-5,null,3.0000000000000001E-6,3.0000000000000001E-6]
["PCBs (WHO-TEQ Birds)",null,null,"None set ng/m3",null,1.8100000000000001E-4,4.4900000000000002E-4,null,2.9399999999999999E-4,2.7E-4]
["Anthanthrene",null,null,"None set µg/m3",null,"< 0.0013","< 0.0014",null,"<0.0012","<0.0013"]
["Benzo(a)anthracene",null,null,"None set µg/m3",null,"< 0.0013","< 0.0014",null,"<0.0012","<0.0013"]
["Benzo(a)pyrene",null,null,"None set µg/m3",null,"< 0.0013","< 0.0014",null,"<0.0012","<0.0013"]
["Benzo(b)fluoranthene",null,null,"None set µg/m3",null,2.4E-2,"< 0.0014",null,"<0.0012","<0.0013"]
["Benzo(b)naptho(2,1-d) thiophene",null,null,"None set µg/m3",null,3.0000000000000001E-3,"< 0.0014",null,"<0.0012","<0.0013"]
["Benzo(c)phenanthrene",null,null,"None set µg/m3",null,1.7000000000000001E-2,"< 0.0014",null,"<0.0012","<0.0013"]
["Benzo(ghi)perylene",null,null,"None set µg/m3",null,1.2999999999999999E-3,1.4E-3,null,"<0.0012","<0.0013"]
["Benzo(k)fluoranthene",null,null,"None set µg/m3",null,8.3999999999999995E-3,"< 0.0014",null,"<0.0012","<0.0013"]
["Cholanthrene",null,null,"None set µg/m3",null,"< 0.0013","< 0.0014",null,"<0.0012","<0.0013"]
["Chrysene",null,null,"None set µg/m3",null,"< 0.0013","< 0.0014",null,"<0.0012","<0.0013"]
["Cyclopenta(cd)pyrene",null,null,"None set µg/m3",null,"< 0.0013",1.4E-3,null,"<0.0012","<0.0013"]
["Dibenzo(ai)pyrene",null,null,"None set µg/m3",null,"< 0.0013","< 0.0014",null,"<0.0012","<0.0013"]
["Dibenzo(ah)anthracene",null,null,"None set µg/m3",null,"< 0.0013","< 0.0014",null,"<0.0012","<0.0013"]
["Fluoranthene",null,null,"None set µg/m3",null,0.19,1.21E-2,null,1.0800000000000001E-2,1.3599999999999999E-2]
["Indeno(123-cd) pyrene",null,null,"None set µg/m3",null,"< 0.0013","< 0.0014",null,"<0.0012","<0.0013"]
["Naphthalene",null,null,"None set µg/m3",null,0.63,0.66,null,0.37609999999999999,0.31659999999999999]
["Comments :"]
["All results returned within limits. "]

{"sheet":"Air (CEMS)","index":13,"n_rows":27,"n_cols":16,"rows_kept":27,"cut":false,"hidden":false,"merged":[[25,0,25,10],[27,0,28,10],[13,0,14,0],[5,0,6,10],[7,0,8,10],[10,0,10,10],[11,0,12,0],[11,2,12,2],[11,1,12,1],[11,7,11,10],[11,3,11,6],[12,9,12,10],[12,7,12,8],[13,7,13,8],[14,7,14,8],[15,7,15,8],[13,9,13,10],[14,9,14,10],[15,9,15,10],[16,7,16,8],[17,7,17,8],[23,7,23,8],[24,7,24,8],[16,9,16,10],[17,9,17,10],[18,9,18,10],[19,9,19,10],[20,9,20,10],[21,9,21,10],[22,9,22,10],[23,9,23,10],[24,9,24,10],[18,7,18,8],[19,7,19,8],[20,7,20,8],[21,7,21,8],[22,7,22,8],[12,3,12,4],[12,5,12,6],[13,5,13,6],[14,5,14,6],[15,5,15,6],[13,3,13,4],[14,3,14,4],[15,3,15,4],[21,5,21,6],[22,5,22,6],[23,5,23,6],[24,5,24,6],[16,5,16,6],[17,5,17,6],[18,5,18,6],[19,5,19,6],[20,5,20,6],[21,3,21,4],[22,3,22,4],[23,3,23,4],[24,3,24,4],[16,3,16,4],[17,3,17,4],[18,3,18,4],[19,3,19,4],[20,3,20,4]]}
[{"$f":"+'Cover Page'!$B$29","v":"Annual Performance Report 2021"}]
[]
["Emissions to Air (continuously monitored)"]
[null,null,null,null,null,null,null,null,null,null,null,null,null,null,null,"Notes:"]
["Summary of monitoring undertaken, standards used and compliance",null,null,null,null,null,null,null,null,null,null,null,null,null,null,"Template may require adjustment for any bespoke monitoring requirements of permit"]
["The monitoring standards utilised during this testing conformed to those stipulated within Table S4.1 of the Permit. ",null,null,null,null,null,null,null,null,null,null,null,null,null,null,"Report to 2 decimal places, i.e. xx.xx%"]
[]
["All results below monitored by CEMs."]
[]
[]
["Results of emissions to air that are continuously monitored (maximum and average values for each line)"]
["Substance","Reference Period","Emission Limit Value","A1",null,null,null,"A2"]
[null,null,null,"Max",null,"Average",null,"Max",null,"Average"]
["Oxides of nitrogen","Daily mean","200 mg/m3 ",{"$f":"NOx!O19","v":185},null,{"$f":"NOx!N19","v":175.47333333333333},null,{"$f":"NOx!O34","v":184},null,{"$f":"NOx!N34","v":176.02583333333337}]
[null,"½ hourly mean","400 mg/m3 ",{"$f":"NOx!M19","v":282},null,{"$f":"NOx!L19","v":175.58333333333334},null,{"$f":"NOx!M34","v":358},null,{"$f":"NOx!L34","v":176.08333333333334}]
["Particulates","Daily mean","10 mg/m3",{"$f":"Particulates!O19","v":2},null,{"$f":"Particulates!N19","v":1.0158333333333334},null,{"$f":"Particulates!O34","v":5.6},null,{"$f":"Particulates!N34","v":0.36749999999999999}]
[null,"½ hourly mean","30 mg/m3 ",{"$f":"Particulates!M19","v":2},null,{"$f":"Particulates!L190","v":0},null,{"$f":"Particulates!M34","v":10.199999999999999},null,{"$f":"Particulates!L34","v":0.37166666666666665}]
["Total Organic Carbon ","Daily mean","10 mg/m3 ",{"$f":"TOC!O19","v":1},null,{"$f":"TOC!N19","v":0.13249999999999998},null,{"$f":"TOC!O34","v":3},null,{"$f":"TOC!N34","v":0.18583333333333332}]
[null,"½ hourly mean","20 mg/m3 ",{"$f":"TOC!M19","v":5},null,{"$f":"TOC!L19","v":0.13666666666666669},null,{"$f":"TOC!M34","v":5},null,{"$f":"TOC!L34","v":0.18166666666666664}]
["Hydrogen chloride ","Daily mean","10 mg/m3 ",{"$f":"HCl!O19","v":8},null,{"$f":"HCl!N19","v":5.3866666666666667},null,{"$f":"HCl!O34","v":7},null,{"$f":"HCl!N34","v":5.1258333333333335}]
[null,"½ hourly mean","60 mg/m3 ",{"$f":"HCl!M19","v":29.6},null,{"$f":"HCl!L19","v":5.4249999999999998},null,{"$f":"HCl!M34","v":109},null,{"$f":"HCl!L34","v":5.0083333333333337}]
["Sulphur dioxide","Daily mean","50 mg/m3 ",{"$f":"'SO2'!O19","v":40},null,{"$f":"'SO2'!N19","v":15.343333333333334},null,{"$f":"'SO2'!O34","v":39},null,{"$f":"'SO2'!N34","v":19.12}]
[null,"½ hourly mean","200 mg/m3 ",{"$f":"'SO2'!M19","v":161},null,{"$f":"'SO2'!L19","v":15.333333333333334},null,{"$f":"'SO2'!M34","v":144},null,{"$f":"'SO2'!L34","v":18.833333333333332}]
["Carbon monoxide ","Daily mean","50 mg/m3 ",{"$f":"'CO 95% 10 min'!Q19","v":14},null,{"$f":"'CO 95% 10 min'!P19","v":1.62},null,{"$f":"'CO 95% 10 min'!Q34","v":27},null,{"$f":"'CO 95% 10 min'!P34","v":3.1374999999999997}]
[null,"95%ile 10-min avg ","150 mg/m3 ",{"$f":"'CO 95% 10 min'!M19","v":7.416666666666667},null,{"$f":"'CO 95% 10 min'!N19","v":1.5},null,{"$f":"'CO 95% 10 min'!M34","v":8.2166666666666668},null,{"$f":"'CO 95% 10 min'!N34","v":2.2599999999999998}]
[]
["Comments :"]

{"sheet":"HCl","index":14,"n_rows":49,"n_cols":17,"rows_kept":49,"cut":false,"hidden":false,"merged":[[3,16,7,18],[9,16,11,18],[12,16,15,18],[4,9,4,14],[4,1,4,3],[4,4,4,6],[6,9,18,9],[21,9,33,9],[66,9,78,9],[51,9,63,9],[47,0,47,6],[48,0,51,6],[36,9,48,9]]}
[{"$f":"+'Cover Page'!$B$29","v":"Annual Performance Report 2021"},null,null,null,{"$f":"+'Cover Page'!$B$33","v":"Ardley Energy Recovery Facility"}]
[]
["Monitoring of Hydrogen Chloride emissions",null,null,"Whole Installation",null,null,null,null,null,{"$f":"+A3","v":"Monitoring of Hydrogen Chloride emissions"},null,null,null,"Per Combustion Line",null,null,"Notes:"]
[null,null,null,null,null,null,null,null,null,null,null,null,null,null,null,null,"User to add logic to complete Whole installation, Table A5:G18. From the data in Per Combustion Line, Table J6:O79, subject to No. of lines installed"]
["mg/Nm3","1/2 Hourly Reference Periods",null,null,"Daily Reference Periods"]
[{"$f":"+'Cover Page'!C39","v":2021},"1/2 hourly HCl ELV","Monthly 1/2 hourly mean","Highest 1/2 hourly maximum","Daily HCl ELV","Monthly daily mean","Highest daily maximum",null,null,{"$f":"+A6","v":2021},"mg/Nm3","Monthly 1/2 hourly mean","Monthly 1/2 hourly maximum","Monthly daily mean","Monthly daily maximum"]
["Jan",60,{"$f":"AVERAGE(L7,L22)","v":5.65},{"$f":"MAX(M7,M22)","v":29.6},10,{"$f":"AVERAGE(N7,N22)","v":5.6050000000000004},{"$f":"MAX(O7,O22)","v":7.3},null,null,"A1","Jan",5.7,29.6,5.65,7.3]
["Feb",60,{"$f":"AVERAGE(L8,L23)","v":5.55},{"$f":"MAX(M8,M23)","v":22.5},10,{"$f":"AVERAGE(N8,N23)","v":5.5},{"$f":"MAX(O8,O23)","v":7},null,null,null,"Feb",5.6,20.6,5.5,6.1]
["Mar",60,5.4,19.8,10,5.415,7.5,null,null,null,"Mar",5.8,18.2,5.84,7.5,null,"Whole Installation table A5:G18:"]
["Apr",60,6,109,10,5.7149999999999999,8,null,null,null,"Apr",6,21,5.83,8,null,"Mean: for 1/2 hourly and daily periods calculate mean of values across all operational combustion lines for the month"]
["May",60,5,25,10,5.3900000000000006,7,null,null,null,"May",5,25,5.48,7]
["Jun",60,5.5,19,10,5.335,7,null,null,null,"Jun",6,19,5.53,7]
["Jul",60,5.5,29,10,5.32,7,null,null,null,"Jul",6,29,5.48,7,null,"Maximum: for 1/2 hourly and daily periods use the highest value across all operational combustion lines for the month"]
["Aug",60,5,17,10,5.24,6,null,null,null,"Aug",5,16,5.29,6]
["Sep",60,5,28,10,5.48,7,null,null,null,"Sep",5,28,5.41,7]
["Oct",60,5,29,10,5.125,7,null,null,null,"Oct",5,20,5.12,7]
["Nov",60,4.5,19,10,4.5149999999999997,6,null,null,null,"Nov",5,19,4.93,6]
["Dec",60,{"$f":"AVERAGE(L18,L33)","v":4.5},21,10,4.4350000000000005,6,null,null,null,"Dec",5,20,4.58,6]
[null,null,null,null,null,null,null,null,null,null,"Annual",{"$f":"AVERAGE(L7:L18)","v":5.4249999999999998},{"$f":"MAX(M7:M18)","v":29.6},{"$f":"AVERAGE(N7:N18)","v":5.3866666666666667},{"$f":"MAX(O7:O18)","v":8}]
[]
[null,null,null,null,null,null,null,null,null,{"$f":"+A6","v":2021},"mg/Nm3","Monthly 1/2 hourly mean","Monthly 1/2 hourly maximum","Monthly daily mean","Monthly daily maximum"]
[null,null,null,null,null,null,null,null,null,"A2","Jan",5.6,16.899999999999999,5.56,6.6]
[null,null,null,null,null,null,null,null,null,null,"Feb",5.5,22.5,5.5,7]
[null,null,null,null,null,null,null,null,null,null,"Mar",5,19.8,4.99,6.8]
[null,null,null,null,null,null,null,null,null,null,"Apr",6,109,5.6,7]
[null,null,null,null,null,null,null,null,null,null,"May",5,21,5.3,7]
[null,null,null,null,null,null,null,null,null,null,"Jun",5,16,5.14,6]
[null,null,null,null,null,null,null,null,null,null,"Jul",5,20,5.16,7]
[null,null,null,null,null,null,null,null,null,null,"Aug",5,17,5.19,6]
[null,null,null,null,null,null,null,null,null,null,"Sep",5,23,5.55,6]
[null,null,null,null,null,null,null,null,null,null,"Oct",5,29,5.13,7]
[null,null,null,null,null,null,null,null,null,null,"Nov",4,17,4.0999999999999996,6]
[null,null,null,null,null,null,null,null,null,null,"Dec",4,21,4.29,6]
[null,null,null,null,null,null,null,null,null,null,"Annual",{"$f":"AVERAGE(L22:L33)","v":5.0083333333333337},{"$f":"MAX(M22:M33)","v":109},{"$f":"AVERAGE(N22:N33)","v":5.1258333333333335},{"$f":"MAX(O22:O33)","v":7}]
[]
[]
[]
[]
[]
[]
[]
[]
[]
[]
[]
[]
[]
["Comments :"]
["One schedule notifications for HCl elevated reading was submitted to the Environment Agency year to date"]

{"sheet":"SO2","index":15,"n_rows":48,"n_cols":17,"rows_kept":48,"cut":false,"hidden":false,"merged":[[3,16,7,18],[9,16,11,18],[12,16,15,18],[66,9,78,9],[4,1,4,3],[4,4,4,6],[4,9,4,14],[6,9,18,9],[21,9,33,9],[36,9,48,9],[47,0,47,6],[48,0,51,6],[51,9,63,9]]}
[{"$f":"+'Cover Page'!$B$29","v":"Annual Performance Report 2021"},null,null,null,{"$f":"+'Cover Page'!$B$33","v":"Ardley Energy Recovery Facility"}]
[]
["Monitoring of Sulphur dioxide emissions",null,null,"Whole Installation",null,null,null,null,null,{"$f":"+A3","v":"Monitoring of Sulphur dioxide emissions"},null,null,null,"Per Combustion Line",null,null,"Notes:"]
[null,null,null,null,null,null,null,null,null,null,null,null,null,null,null,null,"User to add logic to complete Whole installation, Table A5:G18. From the data in Per Combustion Line, Table J6:O79, subject to No. of lines installed"]
["mg/Nm3","1/2 Hourly Reference Periods",null,null,"Daily Reference Periods"]
[{"$f":"+'Cover Page'!C39","v":2021},"1/2 hourly SO2 ELV","Monthly 1/2 hourly mean","Highest 1/2 hourly maximum","Daily SO2 ELV","Monthly daily mean","Highest daily maximum",null,null,{"$f":"+A6","v":2021},"mg/Nm3","Monthly 1/2 hourly mean","Monthly 1/2 hourly maximum","Monthly daily mean","Monthly daily maximum"]
["Jan",200,{"$f":"AVERAGE(L7,L22)","v":21.5},{"$f":"MAX(M7,M22)","v":138},50,{"$f":"AVERAGE(N7,N22)","v":21.354999999999997},{"$f":"MAX(O7,O22)","v":32},null,null,"A1","Jan",21,138,20.65,30]
["Feb",200,{"$f":"AVERAGE(L8,L23)","v":19},{"$f":"MAX(M8,M23)","v":79},50,{"$f":"AVERAGE(N8,N23)","v":18.535},{"$f":"MAX(O8,O23)","v":29},null,null,null,"Feb",16,79,15.46,27]
["Mar",200,16,161,50,16.385000000000002,32,null,null,null,"Mar",15,161,15.35,32,null,"Whole Installation table A5:G18:"]
["Apr",200,17.5,142,50,17.285,30,null,null,null,"Apr",12,100,12.07,24,null,"Mean: for 1/2 hourly and daily periods calculate mean of values across all operational combustion lines for the month"]
["May",200,15,107,50,15.844999999999999,28,null,null,null,"May",9,107,9.06,20]
["Jun",200,11,78,50,11.29,21,null,null,null,"Jun",9,78,9.3000000000000007,15]
["Jul",200,{"$f":"AVERAGE(L28,13)","v":10},{"$f":"MAX(M28,M13)","v":76},50,{"$f":"AVERAGE(N28,N13)","v":7.6549999999999994},{"$f":"AVERAGE(O28,O13)","v":17},null,null,null,"Jul",8,75,8.5,15,null,"Maximum: for 1/2 hourly and daily periods use the highest value across all operational combustion lines for the month"]
["Aug",200,{"$f":"AVERAGE(L29,13)","v":9},{"$f":"MAX(M29,M14)","v":100},50,{"$f":"AVERAGE(N29,N14)","v":11.744999999999999},{"$f":"MAX(O29,14)","v":14},null,null,null,"Aug",18,100,17.52,36]
["Sep",200,14.5,97,50,10.93,{"$f":"MAX(O30,14)","v":27},null,null,null,"Sep",6,29,5.48,7]
["Oct",200,21.5,144,50,22.5,39,null,null,null,"Oct",17,124,18,32]
["Nov",200,28.5,113,50,28.385000000000002,39,null,null,null,"Nov",28,113,27.67,39]
["Dec",200,25,115,50,24.869999999999997,40,null,null,null,"Dec",25,115,25.06,40]
[null,null,null,null,null,null,null,null,null,null,"Annual",{"$f":"AVERAGE(L7:L18)","v":15.333333333333334},{"$f":"MAX(M7:M18)","v":161},{"$f":"AVERAGE(N7:N18)","v":15.343333333333334},{"$f":"MAX(O7:O18)","v":40}]
[]
[null,null,null,null,null,null,null,null,null,{"$f":"+A6","v":2021},"mg/Nm3","Monthly 1/2 hourly mean","Monthly 1/2 hourly maximum","Monthly daily mean","Monthly daily maximum"]
[null,null,null,null,null,null,null,null,null,"A2","Jan",22,90,22.06,32]
[null,null,null,null,null,null,null,null,null,null,"Feb",22,72,21.61,29]
[null,null,null,null,null,null,null,null,null,null,"Mar",17,120,17.420000000000002,26]
[null,null,null,null,null,null,null,null,null,null,"Apr",23,142,22.5,30]
[null,null,null,null,null,null,null,null,null,null,"May",21,93,22.63,28]
[null,null,null,null,null,null,null,null,null,null,"Jun",13,69,13.28,21]
[null,null,null,null,null,null,null,null,null,null,"Jul",7,76,6.81,19]
[null,null,null,null,null,null,null,null,null,null,"Aug",5,58,5.97,12]
[null,null,null,null,null,null,null,null,null,null,"Sep",16,97,16.38,27]
[null,null,null,null,null,null,null,null,null,null,"Oct",26,144,27,39]
[null,null,null,null,null,null,null,null,null,null,"Nov",29,84,29.1,38]
[null,null,null,null,null,null,null,null,null,null,"Dec",25,86,24.68,37]
[null,null,null,null,null,null,null,null,null,null,"Annual",{"$f":"AVERAGE(L22:L33)","v":18.833333333333332},{"$f":"MAX(M22:M33)","v":144},{"$f":"AVERAGE(N22:N33)","v":19.12},{"$f":"MAX(O22:O33)","v":39}]
[]
[]
[]
[]
[]
[]
[]
[]
[]
[]
[]
[]
[]
["Comments :"]

{"sheet":"NOx","index":16,"n_rows":48,"n_cols":17,"rows_kept":48,"cut":false,"hidden":false,"merged":[[3,16,7,18],[9,16,11,18],[12,16,15,18],[66,9,78,9],[4,1,4,3],[4,4,4,6],[4,9,4,14],[6,9,18,9],[21,9,33,9],[36,9,48,9],[47,0,47,6],[48,0,51,6],[51,9,63,9]]}
[{"$f":"+'Cover Page'!$B$29","v":"Annual Performance Report 2021"},null,null,null,{"$f":"+'Cover Page'!$B$33","v":"Ardley Energy Recovery Facility"}]
[]
["Monitoring of Oxides of Nitrogen emissions",null,null,"Whole Installation",null,null,null,null,null,{"$f":"+A3","v":"Monitoring of Oxides of Nitrogen emissions"},null,null,null,"Per Combustion Line",null,null,"Notes:"]
[null,null,null,null,null,null,null,null,null,null,null,null,null,null,null,null,"User to add logic to complete Whole installation, Table A5:G18. From the data in Per Combustion Line, Table J6:O79, subject to No. of lines installed"]
["mg/Nm3","1/2 Hourly Reference Periods",null,null,"Daily Reference Periods"]
[{"$f":"+'Cover Page'!C39","v":2021},"1/2 hourly NOx ELV","Monthly 1/2 hourly mean","Highest 1/2 hourly maximum","Daily NOx ELV","Monthly daily mean","Highest daily maximum",null,null,{"$f":"+A6","v":2021},"mg/Nm3","Monthly 1/2 hourly mean","Monthly 1/2 hourly maximum","Monthly daily mean","Monthly daily maximum"]
["Jan",400,{"$f":"AVERAGE(L7,L22)","v":176},{"$f":"MAX(M7,M22)","v":199},200,{"$f":"AVERAGE(N7,N22)","v":175.83500000000001},{"$f":"MAX(O7,O22)","v":177},null,null,"A1","Jan",176,199,175.9,177]
["Feb",400,{"$f":"AVERAGE(L8,L23)","v":176},{"$f":"MAX(M8,M23)","v":215},200,{"$f":"AVERAGE(N8,N23)","v":175.84},{"$f":"MAX(O8,O23)","v":177},null,null,null,"Feb",176,215,175.82,176]
["Mar",400,176,212,200,175.74,177,null,null,null,"Mar",176,198,175.61,176,null,"Whole Installation table A5:G18:"]
["Apr",400,176,205,200,175.78,177,null,null,null,"Apr",176,205,175.63,177,null,"Mean: for 1/2 hourly and daily periods calculate mean of values across all operational combustion lines for the month"]
["May",400,176,224,200,175.92000000000002,176,null,null,null,"May",176,194,175.87,176]
["Jun",400,176,242,200,175.75,178,null,null,null,"Jun",176,192,175.6,176]
["Jul",400,175,299,200,174.8,182,null,null,null,"Jul",173,196,173,178,null,"Maximum: for 1/2 hourly and daily periods use the highest value across all operational combustion lines for the month"]
["Aug",400,174.5,243,200,174.36500000000001,178,null,null,null,"Aug",173,243,172.6,177]
["Sep",400,175.5,282,200,175.58499999999998,178,null,null,null,"Sep",175,282,175.2,178]
["Oct",400,176,277,200,176.25,182,null,null,null,"Oct",176,257,176.08,182]
["Nov",400,176.5,358,200,176.48500000000001,185,null,null,null,"Nov",177,254,177.4,185]
["Dec",400,176.5,266,200,176.64499999999998,181,null,null,null,"Dec",177,266,176.97,181]
[null,null,null,null,null,null,null,null,null,null,"Annual",{"$f":"AVERAGE(L7:L18)","v":175.58333333333334},{"$f":"MAX(M7:M18)","v":282},{"$f":"AVERAGE(N7:N18)","v":175.47333333333333},{"$f":"MAX(O7:O18)","v":185}]
[]
[null,null,null,null,null,null,null,null,null,{"$f":"+A6","v":2021},"mg/Nm3","Monthly 1/2 hourly mean","Monthly 1/2 hourly maximum","Monthly daily mean","Monthly daily maximum"]
[null,null,null,null,null,null,null,null,null,"A2","Jan",176,196,175.77,176]
[null,null,null,null,null,null,null,null,null,null,"Feb",176,197,175.86,177]
[null,null,null,null,null,null,null,null,null,null,"Mar",176,212,175.87,177]
[null,null,null,null,null,null,null,null,null,null,"Apr",176,196,175.93,177]
[null,null,null,null,null,null,null,null,null,null,"May",176,224,175.97,176]
[null,null,null,null,null,null,null,null,null,null,"Jun",176,242,175.9,178]
[null,null,null,null,null,null,null,null,null,null,"Jul",177,299,176.6,182]
[null,null,null,null,null,null,null,null,null,null,"Aug",176,233,176.13,178]
[null,null,null,null,null,null,null,null,null,null,"Sep",176,201,175.97,177]
[null,null,null,null,null,null,null,null,null,null,"Oct",176,277,176.42,180]
[null,null,null,null,null,null,null,null,null,null,"Nov",176,358,175.57,184]
[null,null,null,null,null,null,null,null,null,null,"Dec",176,256,176.32,179]
[null,null,null,null,null,null,null,null,null,null,"Annual",{"$f":"AVERAGE(L22:L33)","v":176.08333333333334},{"$f":"MAX(M22:M33)","v":358},{"$f":"AVERAGE(N22:N33)","v":176.02583333333337},{"$f":"MAX(O22:O33)","v":184}]
[]
[]
[]
[]
[]
[]
[]
[]
[]
[]
[]
[]
[]
["Comments :"]

{"sheet":"TOC","index":17,"n_rows":49,"n_cols":17,"rows_kept":49,"cut":false,"hidden":false,"merged":[[3,16,7,18],[9,16,11,18],[12,16,15,18],[66,9,78,9],[4,1,4,3],[4,4,4,6],[4,9,4,14],[6,9,18,9],[21,9,33,9],[36,9,48,9],[47,0,47,6],[48,0,51,6],[51,9,63,9]]}
[{"$f":"+'Cover Page'!$B$29","v":"Annual Performance Report 2021"},null,null,null,{"$f":"+'Cover Page'!$B$33","v":"Ardley Energy Recovery Facility"}]
[]
["Monitoring of Total organic carbon emissions",null,null,"Whole Installation",null,null,null,null,null,{"$f":"+A3","v":"Monitoring of Total organic carbon emissions"},null,null,null,"Per Combustion Line",null,null,"Notes:"]
[null,null,null,null,null,null,null,null,null,null,null,null,null,null,null,null,"User to add logic to complete Whole installation, Table A5:G18. From the data in Per Combustion Line, Table J6:O79, subject to No. of lines installed"]
["mg/Nm3","1/2 Hourly Reference Periods",null,null,"Daily Reference Periods"]
[{"$f":"+'Cover Page'!C39","v":2021},"1/2 hourly TOC ELV","Monthly 1/2 hourly mean","Highest 1/2 hourly maximum","Daily TOC ELV","Monthly daily mean","Highest daily maximum",null,null,{"$f":"+A6","v":2021},"mg/Nm3","Monthly 1/2 hourly mean","Monthly 1/2 hourly maximum","Monthly daily mean","Monthly daily maximum"]
["Jan",20,{"$f":"AVERAGE(L7,L22)","v":0.1},{"$f":"MAX(M7,M22)","v":4.5},10,{"$f":"AVERAGE(N7,N22)","v":0.09},{"$f":"MAX(O7,O22)","v":0.4},null,null,"A1","Jan",0.2,4.5,0.18,0.4]
["Feb",20,{"$f":"AVERAGE(L8,L23)","v":0.1},{"$f":"MAX(M8,M23)","v":1.8},10,{"$f":"AVERAGE(N8,N23)","v":7.4999999999999997E-2},{"$f":"MAX(O8,O23)","v":0.3},null,null,null,"Feb",0.2,1.8,0.15,0.3]
["Mar",20,0.1,2.4,10,0.14000000000000001,0.5,null,null,null,"Mar",0.2,1.8,0.21,0.5,null,"Whole Installation table A5:G18:"]
["Apr",20,0,2,10,0,0,null,null,null,"Apr",0,2,0,0,null,"Mean: for 1/2 hourly and daily periods calculate mean of values across all operational combustion lines for the month"]
["May",20,0.03,3,10,0.03,1,null,null,null,"May",0.06,3,0.06,1]
["Jun",20,0.115,5,10,0.115,1,null,null,null,"Jun",0.2,5,0.2,1]
["Jul",20,0.30499999999999999,5,10,0.30499999999999999,1,null,null,null,"Jul",0.61,5,0.61,1,null,"Maximum: for 1/2 hourly and daily periods use the highest value across all operational combustion lines for the month"]
["Aug",20,0.05,3,10,5.5E-2,1,null,null,null,"Aug",0.1,3,0.11,1]
["Sep",20,0.05,3,10,0.05,1,null,null,null,"Sep",7.0000000000000007E-2,3,7.0000000000000007E-2,1]
["Oct",20,0.44500000000000001,5,10,0.435,1,null,null,null,"Oct",0,5,0,0]
["Nov",20,0,3,10,0,0,null,null,null,"Nov",0,2,0,0]
["Dec",20,0.61499999999999999,4,10,0.61499999999999999,3,null,null,null,"Dec",0,2,0,0]
[null,null,null,null,null,null,null,null,null,null,"Annual",{"$f":"AVERAGE(L7:L18)","v":0.13666666666666669},{"$f":"MAX(M7:M18)","v":5},{"$f":"AVERAGE(N7:N18)","v":0.13249999999999998},{"$f":"MAX(O7:O18)","v":1}]
[]
[null,null,null,null,null,null,null,null,null,{"$f":"+A6","v":2021},"mg/Nm3","Monthly 1/2 hourly mean","Monthly 1/2 hourly maximum","Monthly daily mean","Monthly daily maximum"]
[null,null,null,null,null,null,null,null,null,"A2","Jan",0,1.7,0,0]
[null,null,null,null,null,null,null,null,null,null,"Feb",0,0.9,0,0]
[null,null,null,null,null,null,null,null,null,null,"Mar",0,2.4,7.0000000000000007E-2,0.5]
[null,null,null,null,null,null,null,null,null,null,"Apr",0,1,0,0]
[null,null,null,null,null,null,null,null,null,null,"May",0,2,0,0]
[null,null,null,null,null,null,null,null,null,null,"Jun",0.03,2,0.03,1]
[null,null,null,null,null,null,null,null,null,null,"Jul",0,5,0,0]
[null,null,null,null,null,null,null,null,null,null,"Aug",0,3,0,0]
[null,null,null,null,null,null,null,null,null,null,"Sep",0.03,2,0.03,1]
[null,null,null,null,null,null,null,null,null,null,"Oct",0.89,2,0.87,1]
[null,null,null,null,null,null,null,null,null,null,"Nov",0,3,0,0]
[null,null,null,null,null,null,null,null,null,null,"Dec",1.23,4,1.23,3]
[null,null,null,null,null,null,null,null,null,null,"Annual",{"$f":"AVERAGE(L22:L33)","v":0.18166666666666664},{"$f":"MAX(M22:M33)","v":5},{"$f":"AVERAGE(N22:N33)","v":0.18583333333333332},{"$f":"MAX(O22:O33)","v":3}]
[]
[]
[]
[]
[]
[]
[]
[]
[]
[]
[]
[]
[]
["Comments :"]
["An elevated half hour average (13:30pm – 13:59pm) of Total Organic Carbon (TOC) was recorded with a measurement of 20.16 mg/m3 (Half hour permit limit 20 mg/m3) from emission point A2. "]

{"sheet":"Particulates","index":18,"n_rows":48,"n_cols":17,"rows_kept":48,"cut":false,"hidden":false,"merged":[[3,16,7,18],[9,16,11,18],[12,16,15,18],[66,9,78,9],[4,1,4,3],[4,4,4,6],[4,9,4,14],[6,9,18,9],[21,9,33,9],[36,9,48,9],[47,0,47,6],[48,0,51,6],[51,9,63,9]]}
[{"$f":"+'Cover Page'!$B$29","v":"Annual Performance Report 2021"},null,null,null,{"$f":"+'Cover Page'!$B$33","v":"Ardley Energy Recovery Facility"}]
[]
["Monitoring of Particulate matter emissions",null,null,"Whole Installation",null,null,null,null,null,{"$f":"+A3","v":"Monitoring of Particulate matter emissions"},null,null,null,"Per Combustion Line",null,null,"Notes:"]
[null,null,null,null,null,null,null,null,null,null,null,null,null,null,null,null,"User to add logic to complete Whole installation, Table A5:G18. From the data in Per Combustion Line, Table J6:O79, subject to No. of lines installed"]
["mg/Nm3","1/2 Hourly Reference Periods",null,null,"Daily Reference Periods"]
[{"$f":"+'Cover Page'!C39","v":2021},"1/2 hourly PM ELV","Monthly 1/2 hourly mean","Highest 1/2 hourly maximum","Daily PM ELV","Monthly daily mean","Highest daily maximum",null,null,{"$f":"+A6","v":2021},"mg/Nm3","Monthly 1/2 hourly mean","Monthly 1/2 hourly maximum","Monthly daily mean","Monthly daily maximum"]
["Jan",30,{"$f":"AVERAGE(L7,L22)","v":1.4500000000000002},{"$f":"MAX(M7,M22)","v":6.5},10,{"$f":"AVERAGE(N7,N22)","v":1.4649999999999999},{"$f":"MAX(O7,O22)","v":5.6},null,null,"A1","Jan",1.1000000000000001,1.6,1.1299999999999999,1.3]
["Feb",30,{"$f":"AVERAGE(L8,L23)","v":1.3},{"$f":"MAX(M8,M23)","v":10.199999999999999},10,{"$f":"AVERAGE(N8,N23)","v":1.3},{"$f":"MAX(O8,O23)","v":3.2},null,null,null,"Feb",1.1000000000000001,1.7,1.1100000000000001,1.4]
["Mar",30,0.95,1.9,10,0.92500000000000004,1.5,null,null,null,"Mar",1,1.4,0.95,1.1000000000000001,null,"Whole Installation table A5:G18:"]
["Apr",30,0.5,1,10,0.5,1,null,null,null,"Apr",1,1,1,1,null,"Mean: for 1/2 hourly and daily periods calculate mean of values across all operational combustion lines for the month"]
["May",30,0.5,1,10,0.5,1,null,null,null,"May",1,1,1,1]
["Jun",30,0.5,2,10,0.5,1,null,null,null,"Jun",1,1,1,1]
["Jul",30,0.53,1,10,0.53,1,null,null,null,"Jul",1,1,1,1,null,"Maximum: for 1/2 hourly and daily periods use the highest value across all operational combustion lines for the month"]
["Aug",30,0.56499999999999995,2,10,0.56499999999999995,1,null,null,null,"Aug",1,2,1,1]
["Sep",30,0.56500000000000006,2,10,{"$f":"AVERAGE(N15,N30)","v":0.51500000000000001},1,null,null,null,"Sep",1.06,2,1,1]
["Oct",30,0.5,2,10,0.5,1,null,null,null,"Oct",1,2,1,1]
["Nov",30,0.5,2,10,0.5,1,null,null,null,"Nov",1,2,1,1]
["Dec",30,0.5,2,10,0.5,2,null,null,null,"Dec",1,2,1,2]
[null,null,null,null,null,null,null,null,null,null,"Annual",{"$f":"AVERAGE(L7:L18)","v":1.0216666666666667},{"$f":"MAX(M7:M18)","v":2},{"$f":"AVERAGE(N7:N18)","v":1.0158333333333334},{"$f":"MAX(O7:O18)","v":2}]
[]
[null,null,null,null,null,null,null,null,null,{"$f":"+A6","v":2021},"mg/Nm3","Monthly 1/2 hourly mean","Monthly 1/2 hourly maximum","Monthly daily mean","Monthly daily maximum"]
[null,null,null,null,null,null,null,null,null,"A2","Jan",1.8,6.5,1.8,5.6]
[null,null,null,null,null,null,null,null,null,null,"Feb",1.5,10.199999999999999,1.49,3.2]
[null,null,null,null,null,null,null,null,null,null,"Mar",0.9,1.9,0.9,1.5]
[null,null,null,null,null,null,null,null,null,null,"Apr",0,1,0,0]
[null,null,null,null,null,null,null,null,null,null,"May",0,1,0,0]
[null,null,null,null,null,null,null,null,null,null,"Jun",0,2,0,0]
[null,null,null,null,null,null,null,null,null,null,"Jul",0.06,1,0.06,1]
[null,null,null,null,null,null,null,null,null,null,"Aug",0.13,2,0.13,1]
[null,null,null,null,null,null,null,null,null,null,"Sep",7.0000000000000007E-2,1,0.03,1]
[null,null,null,null,null,null,null,null,null,null,"Oct",0,1,0,0]
[null,null,null,null,null,null,null,null,null,null,"Nov",0,1,0,0]
[null,null,null,null,null,null,null,null,null,null,"Dec",0,1,0,0]
[null,null,null,null,null,null,null,null,null,null,"Annual",{"$f":"AVERAGE(L22:L33)","v":0.37166666666666665},{"$f":"MAX(M22:M33)","v":10.199999999999999},{"$f":"AVERAGE(N22:N33)","v":0.36749999999999999},{"$f":"MAX(O22:O33)","v":5.6}]
[]
[]
[]
[]
[]
[]
[]
[]
[]
[]
[]
[]
[]
["Comments :"]

{"sheet":"CO 95% 10 min","index":19,"n_rows":49,"n_cols":19,"rows_kept":49,"cut":false,"hidden":false,"merged":[[3,18,7,20],[9,18,11,20],[12,18,15,20],[66,10,78,10],[4,1,4,4],[4,5,4,7],[4,10,4,16],[6,10,18,10],[21,10,33,10],[36,10,48,10],[47,0,47,7],[48,0,51,7],[51,10,63,10]]}
[{"$f":"+'Cover Page'!$B$29","v":"Annual Performance Report 2021"},null,null,null,{"$f":"+'Cover Page'!$B$33","v":"Ardley Energy Recovery Facility"}]
[]
["Monitoring of Carbon Monoxide (10-minute avg)",null,null,null,"Whole Installation",null,null,null,null,{"$f":"+A3","v":"Monitoring of Carbon Monoxide (10-minute avg)"},null,null,null,null,"Per Combustion Line",null,"Notes:",null,"Notes:"]
[null,null,null,null,null,null,null,null,null,null,null,null,null,null,null,null,null,null,"User to add logic to complete Whole installation, Table A5:H18. From the data in Per Combustion Line, Table K6:Q79, subject to No. of lines installed"]
["mg/Nm3","10-minute Reference Periods",null,null,null,"Daily Reference Periods"]
[{"$f":"+'Cover Page'!C39","v":2021},"95%ile 10-min avg CO ELV","95%ile 10-min avg maximum","Monthly CO 10-min avg mean","10-min avg maximum","Daily CO ELV","Monthly daily mean","Highest daily maximum",null,null,{"$f":"+A6","v":2021},"mg/Nm3","95%ile 10-min avg maximum","Monthly CO 10-min avg mean","10-min avg maximum","Monthly daily mean","Monthly daily maximum"]
["Jan",150,{"$f":"MAX(N22,M7)","v":5},{"$f":"AVERAGE(N7,N22)","v":0.5},{"$f":"MAX(O7,O22)","v":95},50,{"$f":"AVERAGE(P7,P22)","v":0.80499999999999994},{"$f":"MAX(Q7,Q22)","v":2},null,null,"A1","Jan",5,0,95,0.19,1]
["Feb",{"$f":"+B7","v":150},{"$f":"MAX(N23,M8)","v":3},1,{"$f":"MAX(O8,O23)","v":64},{"$f":"+F7","v":50},1.5550000000000002,5,null,null,null,"Feb",3,0,64,0.68,2]
["Mar",{"$f":"+B8","v":150},{"$f":"MAX(N24,M9)","v":6},2.5,290,{"$f":"+F8","v":50},2.0950000000000002,5,null,null,null,"Mar",6,2,290,1.74,5,null,"Whole Installation table A5:H18:"]
["Apr",150,{"$f":"MAX(M10,M25)","v":10},3,361,50,3.2,6,null,null,null,"Apr",8,2,361,2.1,5,null,"Mean: for 10-min and daily periods use average of all operational combustion lines."]
["May",150,9,3.5,172,50,3.335,6,null,null,null,"May",9,3,63,2.84,4]
["Jun",150,11,2,131,50,2.12,6,null,null,null,"Jun",11,2,131,2.0699999999999998,6]
["Jul",150,15,4,408,50,3.9550000000000001,14,null,null,null,"Jul",15,6,350,5.94,14,null,"Maximum: for 10-min and daily periods use the highest of all operational combustion lines in any month."]
["Aug",150,8,1.5,268,50,1.5550000000000002,4,null,null,null,"Aug",6,1,142,1.27,3]
["Sep",150,5,1,144,50,1.2999999999999998,3,null,null,null,"Sep",5,1,144,1.17,3]
["Oct",150,12,1,464,50,1.04,5,null,null,null,"Oct",8,1,464,0.78,5]
["Nov",150,9,0.5,328,50,0.66500000000000004,4,null,null,null,"Nov",9,0,328,0.4,3]
["Dec",150,28,7,286,50,6.92,27,null,null,null,"Dec",4,0,286,0.26,2]
[null,null,null,null,null,null,null,null,null,null,null,"Annual",{"$f":"AVERAGE(M7:M18)","v":7.416666666666667},{"$f":"AVERAGE(N7:N18)","v":1.5},{"$f":"MAX(O7:O18)","v":464},{"$f":"AVERAGE(P7:P18)","v":1.62},{"$f":"MAX(Q7:Q18)","v":14}]
[]
[null,null,null,null,null,null,null,null,null,null,{"$f":"+A6","v":2021},"mg/Nm3","95%ile 10-min avg maximum","Monthly CO 10-min avg mean","10-min avg maximum","Monthly daily mean","Monthly daily maximum"]
[null,null,null,null,null,null,null,null,null,null,"A2","Jan",5,1,87,1.42,2]
[null,null,null,null,null,null,null,null,null,null,null,"Feb",6,2,39,2.4300000000000002,5]
[null,null,null,null,null,null,null,null,null,null,null,"Mar",6,3,10,2.4500000000000002,4]
[null,null,null,null,null,null,null,null,null,null,null,"Apr",10,4,145,4.3,6]
[null,null,null,null,null,null,null,null,null,null,null,"May",7,4,172,3.83,6]
[null,null,null,null,null,null,null,null,null,null,null,"Jun",8,2,73,2.17,4]
[null,null,null,null,null,null,null,null,null,null,null,"Jul",9,2,408,1.97,5]
[null,null,null,null,null,null,null,null,null,null,null,"Aug",8,2,268,1.84,4]
[null,null,null,null,null,null,null,null,null,null,null,"Sep",3,1,115,1.43,2]
[null,null,null,null,null,null,null,null,null,null,null,"Oct",12,1,193,1.3,4]
[null,null,null,null,null,null,null,null,null,null,null,"Nov",7,1,101,0.93,4]
[null,null,null,null,null,null,null,null,null,null,null,"Dec",28,14,276,13.58,27]
[null,null,null,null,null,null,null,null,null,null,null,"Annual",{"$f":"AVERAGE(M7:M33)","v":8.2166666666666668},{"$f":"AVERAGE(N7:N33)","v":2.2599999999999998},{"$f":"MAX(O22:O33)","v":408},{"$f":"AVERAGE(P22:P33)","v":3.1374999999999997},{"$f":"MAX(Q22:Q33)","v":27}]
[]
[]
[]
[]
[]
[]
[]
[]
[]
[]
[]
[]
[]
["Comments :"]
["Environment Agency explanatory note: The 10-minute average ELV is based on the “95th percentile”. In this case this means that 95% of the 10 minute averages in the relevant 24-hour period (i.e. 137) must be below 150 mg/Nm3, and 5% (i.e. 7) are allowed to be any value above 150 mg/Nm3. Whilst we expect operators to minimise CO emissions at all times, it is perfectly acceptable for the value of the maximum 10-minute average to be above 150 mg/Nm3, provided the 95th percentile ELV has been met for that period. "]